Workbook

Sheet Home

Sheet Conference
A1: Cennik Systemów Kongresowych i Konferencyjnych REUP, ważny od 01.06.2026
A4: kod CTN | B4: Numer SAP | C4: Opis | D4: kategoria produktowa | E4: Cena REUP EUR netto | F4: Status dostępności | G4: kod ABC | H4: kod Commodity | I4: kraj pochodzenia | J4: Lead Time (days) | K4: opakowanie zbiorcze | L4: Spike order qty | M4: Gwarancja (lat) | N4: Przedłużenie gwarancji o 12 m-cy | O4: Uwagi
A5: SYSTEM PRZEWODOWY DICENTIS
A6: Pulpity, mikrofony
A7: DCNM-MMDOCK | B7: F.01U.425.491 | C7: Multimedia docking | D7: 4e | E7: =_xlfn.XLOOKUP( B7, '[4]Pricelist Conference Audio EMEA'!$B:$B, '[4]Pricelist Conference Audio EMEA'!$G:$G, "Not found" ) -> 2144.6 | G7: A | I7: PT | O7: New. Expected release in July 2026
A8: DCNM-MMFF | B8: F.01U.425.436 | C8: Multimedia full function | D8: 4e | E8: =_xlfn.XLOOKUP( B8, '[4]Pricelist Conference Audio EMEA'!$B:$B, '[4]Pricelist Conference Audio EMEA'!$G:$G, "Not found" ) -> 3440 | G8: A | I8: PT | O8: New. Expected release in July 2026
A9: DCNM-MICLC | B9: F.01U.435.632 | C9: Microphone long stem cardioid | D9: 4e | E9: =_xlfn.XLOOKUP( B9, '[4]Pricelist Conference Audio EMEA'!$B:$B, '[4]Pricelist Conference Audio EMEA'!$G:$G, "Not found" ) -> 188.1 | F9: S1 | G9: A | H9: 85181000 | I9: CN | O9: New. Expected release in July 2026
A10: DCNM-MICLWC | B10: F.01U.435.634 | C10: Microphone long stem wide cardioid | D10: 4e | E10: =_xlfn.XLOOKUP( B10, '[4]Pricelist Conference Audio EMEA'!$B:$B, '[4]Pricelist Conference Audio EMEA'!$G:$G, "Not found" ) -> 204.3 | F10: S1 | G10: A | H10: 85181000 | I10: CN | O10: New. Expected release in July 2026
A11: DCNM-MICSC | B11: F.01U.435.631 | C11: Microphone short stem cardioid | D11: 4e | E11: =_xlfn.XLOOKUP( B11, '[4]Pricelist Conference Audio EMEA'!$B:$B, '[4]Pricelist Conference Audio EMEA'!$G:$G, "Not found" ) -> 172 | F11: S1 | G11: A | H11: 85181000 | I11: CN | O11: New. Expected release in July 2026
A12: DCNM-MICSWC | B12: F.01U.435.633 | C12: Microphone short stem wide cardioid | D12: 4e | E12: =_xlfn.XLOOKUP( B12, '[4]Pricelist Conference Audio EMEA'!$B:$B, '[4]Pricelist Conference Audio EMEA'!$G:$G, "Not found" ) -> 193.5 | F12: S1 | G12: A | H12: 85181000 | I12: CN | O12: New. Expected release in July 2026
A13: DCNM-D | B13: F.01U.313.726 | C13: Pulpit dyskusyjny podstawowy | D13: 4e | E13: =_xlfn.XLOOKUP( B13, '[4]Pricelist Conference Audio EMEA'!$B:$B, '[4]Pricelist Conference Audio EMEA'!$G:$G, "Not found" ) -> 518.2 | F13: S3 | G13: A+ | H13: 8518309590 | I13: PT | L13: 10 | M13: 3 | N13: EWE-DCNDIS-IW
A14: DCNM-DE | B14: F.01U.313.729 | C14: Pulpit dyskusyjny z ekranem dotykowym, NFC | D14: 4e | E14: =_xlfn.XLOOKUP( B14, '[4]Pricelist Conference Audio EMEA'!$B:$B, '[4]Pricelist Conference Audio EMEA'!$G:$G, "Not found" ) -> 874.8 | F14: S3 | G14: A+ | H14: 8518309590 | I14: PT | L14: 50 | M14: 3 | N14: EWE-DCNDTS-IW
A15: DCNM-DSL | B15: F.01U.313.728 | C15: Pulpit dyskusyjny z funkcją odsłuchu kanałów tłumaczeń, NFC | D15: 4e | E15: =_xlfn.XLOOKUP( B15, '[4]Pricelist Conference Audio EMEA'!$B:$B, '[4]Pricelist Conference Audio EMEA'!$G:$G, "Not found" ) -> 563.3 | F15: S3 | G15: A+ | H15: 8543709099 | I15: PT | L15: 10 | M15: 3 | N15: EWE-DCNDIS-IW
A16: DCNM-DVT | B16: F.01U.313.727 | C16: Pulpit dyskusyjny z funkcja głosowania, NFC | D16: 4e | E16: =_xlfn.XLOOKUP( B16, '[4]Pricelist Conference Audio EMEA'!$B:$B, '[4]Pricelist Conference Audio EMEA'!$G:$G, "Not found" ) -> 579.6 | F16: S3 | G16: A+ | H16: 8518309590 | I16: PT | L16: 35 | M16: 3 | N16: EWE-DCNDIS-IW
A17: DCNM-IDESK | B17: F.01U.314.659 | C17: Pulpit tłumacza | D17: 4e | E17: =_xlfn.XLOOKUP( B17, '[4]Pricelist Conference Audio EMEA'!$B:$B, '[4]Pricelist Conference Audio EMEA'!$G:$G, "Not found" ) -> 2307.4 | F17: S3 | G17: A | H17: 8518309590 | I17: PT | L17: 0 | M17: 3 | N17: EWE-DCNIDE-IW
A18: DCNM-IDESKVID | B18: F.01U.326.553 | C18: Pulpit tłumacza z wyjściem wideo | D18: 4e | E18: =_xlfn.XLOOKUP( B18, '[4]Pricelist Conference Audio EMEA'!$B:$B, '[4]Pricelist Conference Audio EMEA'!$G:$G, "Not found" ) -> 2884.4 | F18: S3 | G18: A | H18: 8518309590 | I18: PT | L18: 0 | M18: 3 | N18: EWE-DCNIDE-IW
A19: DCNM-HDMIC | B19: F.01U.269.132 | C19: Mikrofon kierunkowy | D19: 4e | E19: =_xlfn.XLOOKUP( B19, '[4]Pricelist Conference Audio EMEA'!$B:$B, '[4]Pricelist Conference Audio EMEA'!$G:$G, "Not found" ) -> 260.8 | F19: S3 | G19: A+ | H19: 8518109590 | I19: PT | L19: 50 | M19: 3 | N19: EWE-DCNMIC-IW
A20: DCNM-MICS | B20: F.01U.288.448 | C20: Mikrofon krótki | D20: 4e | E20: =_xlfn.XLOOKUP( B20, '[4]Pricelist Conference Audio EMEA'!$B:$B, '[4]Pricelist Conference Audio EMEA'!$G:$G, "Not found" ) -> 179.2 | F20: S3 | G20: A+ | H20: 8518109590 | I20: CN | L20: 80 | M20: 3 | N20: EWE-DCNMIC-IW
A21: DCNM-MICL | B21: F.01U.288.447 | C21: Mikrofon długi | D21: 4e | E21: =_xlfn.XLOOKUP( B21, '[4]Pricelist Conference Audio EMEA'!$B:$B, '[4]Pricelist Conference Audio EMEA'!$G:$G, "Not found" ) -> 193.8 | F21: S3 | G21: A+ | H21: 8518109590 | I21: CN | L21: 80 | M21: 3 | N21: EWE-DCNMIC-IW
A22: CSP-D00067 | B22: F.01U.380.045 | C22: DCNM-MIC WITH 320 mm STEM | D22: 4e | E22: =_xlfn.XLOOKUP( B22, '[4]Pricelist Conference Audio EMEA'!$B:$B, '[4]Pricelist Conference Audio EMEA'!$G:$G, "Not found" ) -> N/A | F22: S3 | G22: D | H22: 85181000 | I22: CN | O22: produkt na zamówienie. Minimalna wielkość zamówienia 24 sztuki
A23: CSP-D00068 | B23: F.01U.380.046 | C23: DCNM-MIC WITH 340 mm STEM | D23: 4e | E23: =_xlfn.XLOOKUP( B23, '[4]Pricelist Conference Audio EMEA'!$B:$B, '[4]Pricelist Conference Audio EMEA'!$G:$G, "Not found" ) -> N/A | F23: S3 | G23: D | H23: 85181000 | I23: CN | O23: produkt na zamówienie. Minimalna wielkość zamówienia 24 sztuki
A24: CSP-D00069 | B24: F.01U.380.047 | C24: DCNM-MIC WITH 360 mm STEM | D24: 4e | E24: =_xlfn.XLOOKUP( B24, '[4]Pricelist Conference Audio EMEA'!$B:$B, '[4]Pricelist Conference Audio EMEA'!$G:$G, "Not found" ) -> N/A | F24: S3 | G24: D | H24: 85181000 | I24: CN | O24: produkt na zamówienie. Minimalna wielkość zamówienia 24 sztuki
A25: CSP-D00070 | B25: F.01U.380.048 | C25: DCNM-MIC WITH 380 mm STEM | D25: 4e | E25: =_xlfn.XLOOKUP( B25, '[4]Pricelist Conference Audio EMEA'!$B:$B, '[4]Pricelist Conference Audio EMEA'!$G:$G, "Not found" ) -> N/A | F25: S3 | G25: D | H25: 85181000 | I25: CN | O25: produkt na zamówienie. Minimalna wielkość zamówienia 24 sztuki
A26: CSP-D00071 | B26: F.01U.380.049 | C26: DCNM-MIC WITH 400 mm STEM | D26: 4e | E26: =_xlfn.XLOOKUP( B26, '[4]Pricelist Conference Audio EMEA'!$B:$B, '[4]Pricelist Conference Audio EMEA'!$G:$G, "Not found" ) -> 237.6 | F26: S3 | G26: D | H26: 85181000 | I26: CN | O26: produkt na zamówienie. Minimalna wielkość zamówienia 24 sztuki
A27: CSP-D00072 | B27: F.01U.380.050 | C27: DCNM-MIC WITH 420 mm STEM | D27: 4e | E27: =_xlfn.XLOOKUP( B27, '[4]Pricelist Conference Audio EMEA'!$B:$B, '[4]Pricelist Conference Audio EMEA'!$G:$G, "Not found" ) -> N/A | F27: S3 | G27: D | H27: 85181000 | I27: CN | O27: produkt na zamówienie. Minimalna wielkość zamówienia 24 sztuki
A28: CSP-D00073 | B28: F.01U.380.051 | C28: DCNM-MIC WITH 440 mm STEM | D28: 4e | E28: =_xlfn.XLOOKUP( B28, '[4]Pricelist Conference Audio EMEA'!$B:$B, '[4]Pricelist Conference Audio EMEA'!$G:$G, "Not found" ) -> N/A | F28: S3 | G28: D | H28: 85181000 | I28: CN | O28: produkt na zamówienie. Minimalna wielkość zamówienia 24 sztuki
A29: CSP-D00074 | B29: F.01U.380.052 | C29: DCNM-MIC WITH 460 mm STEM | D29: 4e | E29: =_xlfn.XLOOKUP( B29, '[4]Pricelist Conference Audio EMEA'!$B:$B, '[4]Pricelist Conference Audio EMEA'!$G:$G, "Not found" ) -> N/A | F29: S3 | G29: D | H29: 85181000 | I29: CN | O29: produkt na zamówienie. Minimalna wielkość zamówienia 24 sztuki
A30: Pulpity do zabudowy
A31: DCNM-FEC | B31: F.01U.365.155 | C31: 50 zakończeń modułów montażu płaskiego | D31: 4e | E31: =_xlfn.XLOOKUP( B31, '[4]Pricelist Conference Audio EMEA'!$B:$B, '[4]Pricelist Conference Audio EMEA'!$G:$G, "Not found" ) -> 226.2 | F31: S3 | G31: A | H31: 39269097 | I31: CN
A32: DCNM-FSL2 | B32: F.01U.425.572 | C32: Selektor kanałów z funkcją Daisy-chain | D32: 4e | E32: =_xlfn.XLOOKUP( B32, '[4]Pricelist Conference Audio EMEA'!$B:$B, '[4]Pricelist Conference Audio EMEA'!$G:$G, "Not found" ) -> 494.5 | F32: S3 | G32: A | O32: Nowy produkt. Następca DCNM-FLS
A33: DCNM-FET | B33: F.01U.376.649 | C33: Narzędzia do demontażu zestawu Flush Mounted | D33: 4e | E33: =_xlfn.XLOOKUP( B33, '[4]Pricelist Conference Audio EMEA'!$B:$B, '[4]Pricelist Conference Audio EMEA'!$G:$G, "Not found" ) -> 166.8 | F33: S3 | G33: A | H33: 39269097 | I33: CN
A34: DCNM-FBD2 | B34: F.01U.405.788 | C34: Flush base device 2 | D34: 4e | E34: =_xlfn.XLOOKUP( B34, '[4]Pricelist Conference Audio EMEA'!$B:$B, '[4]Pricelist Conference Audio EMEA'!$G:$G, "Not found" ) -> 726.9 | F34: S3 | G34: A | H34: 85437090 | I34: PT | M34: 3
A35: DCNM-FBPS | B35: F.01U.393.972 | C35: Flush blank panel slim | D35: 4e | E35: =_xlfn.XLOOKUP( B35, '[4]Pricelist Conference Audio EMEA'!$B:$B, '[4]Pricelist Conference Audio EMEA'!$G:$G, "Not found" ) -> 161.6 | F35: S3 | G35: A | H35: 85189000 | I35: CN | K35: 10 | M35: 3 | O35: Opakowanie zawiera 10 sztuk
A36: DCNM-FBPW | B36: F.01U.393.973 | C36: Flush blank panel wide | D36: 4e | E36: =_xlfn.XLOOKUP( B36, '[4]Pricelist Conference Audio EMEA'!$B:$B, '[4]Pricelist Conference Audio EMEA'!$G:$G, "Not found" ) -> 249 | F36: S3 | G36: A | H36: 85189000 | I36: CN | K36: 10 | M36: 3 | O36: Opakowanie zawiera 10 sztuk
A37: DCNM-FHH | B37: F.01U.405.507 | C37: Flush hand held microphone | D37: 4e | E37: =_xlfn.XLOOKUP( B37, '[4]Pricelist Conference Audio EMEA'!$B:$B, '[4]Pricelist Conference Audio EMEA'!$G:$G, "Not found" ) -> 248.3 | F37: S3 | G37: A | H37: 85181000 | I37: PT | K37: 28 | M37: 3
A38: DCNM-FHHC | B38: F.01U.405.508 | C38: Hand held microphone coiled | D38: 4e | E38: =_xlfn.XLOOKUP( B38, '[4]Pricelist Conference Audio EMEA'!$B:$B, '[4]Pricelist Conference Audio EMEA'!$G:$G, "Not found" ) -> 248.3 | F38: S3 | G38: A | H38: 85181000 | I38: PT | K38: 28 | M38: 3
A39: DCNM‑FLSP | B39: F.01U.383.840 | C39: Flush loudspeaker panel | D39: 4e | E39: =_xlfn.XLOOKUP( B39, '[4]Pricelist Conference Audio EMEA'!$B:$B, '[4]Pricelist Conference Audio EMEA'!$G:$G, "Not found" ) -> 107.7 | F39: S3 | G39: A | H39: 85189000 | M39: 3
A40: DCNM‑FMCP | B40: F.01U.383.837 | C40: Flush microphone connection panel | D40: 4e | E40: =_xlfn.XLOOKUP( B40, '[4]Pricelist Conference Audio EMEA'!$B:$B, '[4]Pricelist Conference Audio EMEA'!$G:$G, "Not found" ) -> 105 | F40: S3 | G40: A | H40: 85189000 | I40: PT | M40: 3
A41: DCNM-FMICB | B41: F.01U.383.838 | C41: Flush microphone button panel | D41: 4e | E41: =_xlfn.XLOOKUP( B41, '[4]Pricelist Conference Audio EMEA'!$B:$B, '[4]Pricelist Conference Audio EMEA'!$G:$G, "Not found" ) -> 94.3 | F41: S3 | G41: A | M41: 3
A42: DCNM-FPRIOB | B42: F.01U.383.839 | C42: Flush priority button panel | D42: 4e | E42: =_xlfn.XLOOKUP( B42, '[4]Pricelist Conference Audio EMEA'!$B:$B, '[4]Pricelist Conference Audio EMEA'!$G:$G, "Not found" ) -> 239.5 | F42: S3 | G42: A | M42: 3
A43: DCNM-FPT | B43: F.01U.393.974 | C43: Flush positioning tool | D43: 4e | E43: =_xlfn.XLOOKUP( B43, '[4]Pricelist Conference Audio EMEA'!$B:$B, '[4]Pricelist Conference Audio EMEA'!$G:$G, "Not found" ) -> 27 | F43: S3 | G43: A | H43: 85189000 | I43: CN | M43: 3
A44: DCNM-FVP | B44: F.01U.402.924 | C44: Flush voting panel | D44: 4e | E44: =_xlfn.XLOOKUP( B44, '[4]Pricelist Conference Audio EMEA'!$B:$B, '[4]Pricelist Conference Audio EMEA'!$G:$G, "Not found" ) -> 180.6 | F44: S3
A45: DCNM-FIDP | B45: F.01U.402.925 | C45: Flush identification panel | D45: 4e | E45: =_xlfn.XLOOKUP( B45, '[4]Pricelist Conference Audio EMEA'!$B:$B, '[4]Pricelist Conference Audio EMEA'!$G:$G, "Not found" ) -> 180.6 | F45: S3
A46: DCNM-FICH | B46: F.01U.402.928 | C46: Flush ID card holder | D46: 4e | E46: =_xlfn.XLOOKUP( B46, '[4]Pricelist Conference Audio EMEA'!$B:$B, '[4]Pricelist Conference Audio EMEA'!$G:$G, "Not found" ) -> 361.2 | F46: S3
A47: DCNM-FAI | B47: F.01U.402.926 | C47: Flush audio interface | D47: 4e | E47: =_xlfn.XLOOKUP( B47, '[4]Pricelist Conference Audio EMEA'!$B:$B, '[4]Pricelist Conference Audio EMEA'!$G:$G, "Not found" ) -> 225.8 | F47: S3
A48: DCNM-FSLP | B48: F.01U.402.927 | C48: Flush language selection panel | D48: 4e | E48: =_xlfn.XLOOKUP( B48, '[4]Pricelist Conference Audio EMEA'!$B:$B, '[4]Pricelist Conference Audio EMEA'!$G:$G, "Not found" ) -> 259.6 | F48: S3
A49: DCNM-MICSLL | B49: F.01U.392.960 | C49: Microphone screw lock long stem | D49: 4e | E49: =_xlfn.XLOOKUP( B49, '[4]Pricelist Conference Audio EMEA'!$B:$B, '[4]Pricelist Conference Audio EMEA'!$G:$G, "Not found" ) -> 185.7 | F49: S3 | G49: A | H49: 85181000 | I49: TW | M49: 3
A50: DCNM-MICSLS | B50: F.01U.392.959 | C50: Microphone screw lock short stem | D50: 4e | E50: =_xlfn.XLOOKUP( B50, '[4]Pricelist Conference Audio EMEA'!$B:$B, '[4]Pricelist Conference Audio EMEA'!$G:$G, "Not found" ) -> 171 | F50: S3 | G50: A | H50: 85181000 | I50: TW | M50: 3
A51: CSP-D00105 | B51: F.01U.393.344 | C51: MICROPHONE SCREW LOCK 320mm | D51: 4e | E51: =_xlfn.XLOOKUP( B51, '[4]Pricelist Conference Audio EMEA'!$B:$B, '[4]Pricelist Conference Audio EMEA'!$G:$G, "Not found" ) -> N/A | F51: S3 | O51: produkt na zamówienie. Minimalna wielkość zamówienia 24 sztuki
A52: CSP-D00106 | B52: F.01U.393.345 | C52: MICROPHONE SCREW LOCK 340mm | D52: 4e | E52: =_xlfn.XLOOKUP( B52, '[4]Pricelist Conference Audio EMEA'!$B:$B, '[4]Pricelist Conference Audio EMEA'!$G:$G, "Not found" ) -> N/A | F52: S3 | O52: produkt na zamówienie. Minimalna wielkość zamówienia 24 sztuki
A53: CSP-D00107 | B53: F.01U.393.346 | C53: MICROPHONE SCREW LOCK 360mm | D53: 4e | E53: =_xlfn.XLOOKUP( B53, '[4]Pricelist Conference Audio EMEA'!$B:$B, '[4]Pricelist Conference Audio EMEA'!$G:$G, "Not found" ) -> N/A | F53: S3 | O53: produkt na zamówienie. Minimalna wielkość zamówienia 24 sztuki
A54: CSP-D00108 | B54: F.01U.393.347 | C54: MICROPHONE SCREW LOCK 380mm | D54: 4e | E54: =_xlfn.XLOOKUP( B54, '[4]Pricelist Conference Audio EMEA'!$B:$B, '[4]Pricelist Conference Audio EMEA'!$G:$G, "Not found" ) -> N/A | F54: S3 | O54: produkt na zamówienie. Minimalna wielkość zamówienia 24 sztuki
A55: CSP-D00109 | B55: F.01U.393.348 | C55: MICROPHONE SCREW LOCK 400mm | D55: 4e | E55: =_xlfn.XLOOKUP( B55, '[4]Pricelist Conference Audio EMEA'!$B:$B, '[4]Pricelist Conference Audio EMEA'!$G:$G, "Not found" ) -> 212.2 | F55: S3 | O55: produkt na zamówienie. Minimalna wielkość zamówienia 24 sztuki
A56: CSP-D00110 | B56: F.01U.393.349 | C56: MICROPHONE SCREW LOCK 420mm | D56: 4e | E56: =_xlfn.XLOOKUP( B56, '[4]Pricelist Conference Audio EMEA'!$B:$B, '[4]Pricelist Conference Audio EMEA'!$G:$G, "Not found" ) -> N/A | F56: S3 | O56: produkt na zamówienie. Minimalna wielkość zamówienia 24 sztuki
A57: CSP-D00111 | B57: F.01U.393.350 | C57: MICROPHONE SCREW LOCK 440mm | D57: 4e | E57: =_xlfn.XLOOKUP( B57, '[4]Pricelist Conference Audio EMEA'!$B:$B, '[4]Pricelist Conference Audio EMEA'!$G:$G, "Not found" ) -> N/A | F57: S3 | O57: produkt na zamówienie. Minimalna wielkość zamówienia 24 sztuki
A58: CSP-D00112 | B58: F.01U.393.351 | C58: MICROPHONE SCREW LOCK 460mm | D58: 4e | E58: =_xlfn.XLOOKUP( B58, '[4]Pricelist Conference Audio EMEA'!$B:$B, '[4]Pricelist Conference Audio EMEA'!$G:$G, "Not found" ) -> N/A | F58: S3 | O58: produkt na zamówienie. Minimalna wielkość zamówienia 24 sztuki
A59: CSP-D00388 | B59: F.01U.412.151 | C59: Mic. screw lock short stem ( silver) | D59: 4e | E59: =_xlfn.XLOOKUP( B59, '[4]Pricelist Conference Audio EMEA'!$B:$B, '[4]Pricelist Conference Audio EMEA'!$G:$G, "Not found" ) -> N/A | F59: S3 | G59: A | H59: 85181000 | I59: TW | J59: 75 | M59: 3
A60: CSP-D00389 | B60: F.01U.412.152 | C60: Mic. screw lock long stem (silver) | D60: 4e | E60: =_xlfn.XLOOKUP( B60, '[4]Pricelist Conference Audio EMEA'!$B:$B, '[4]Pricelist Conference Audio EMEA'!$G:$G, "Not found" ) -> N/A | F60: S3 | G60: A | H60: 85181000 | I60: TW | J60: 75 | M60: 3
A61: DICENTIS Central Equipment 1
A62: DCNM-APS2 | B62: F.01U.308.936 | C62: Zasilacz, switch, DSP | D62: 4e | E62: =_xlfn.XLOOKUP( B62, '[4]Pricelist Conference Audio EMEA'!$B:$B, '[4]Pricelist Conference Audio EMEA'!$G:$G, "Not found" ) -> 2405.7 | F62: S3 | G62: A+ | H62: 8543709099 | I62: PT | L62: 2 | M62: 3 | N62: EWE-DCNAPS-IW
A63: DCNM-PS2 | B63: F.01U.308.937 | C63: Zasilacz | D63: 4e | E63: =_xlfn.XLOOKUP( B63, '[4]Pricelist Conference Audio EMEA'!$B:$B, '[4]Pricelist Conference Audio EMEA'!$G:$G, "Not found" ) -> 1707.4 | F63: S3 | G63: A | H63: 8543709099 | I63: PT | L63: 2 | M63: 3 | N63: EWE-DCNMPS-IW
A64: OMN-ARNIS | B64: F.01U.311.135 | C64: ARNI-S CONTROLLER EURO | D64: 4e | E64: =_xlfn.XLOOKUP( B64, '[4]Pricelist Conference Audio EMEA'!$B:$B, '[4]Pricelist Conference Audio EMEA'!$G:$G, "Not found" ) -> 5455.6 | F64: S3 | G64: A | H64: 8471410090 | I64: CN | L64: 2 | M64: 3
A65: OMN-ARNIE | B65: F.01U.311.136 | C65: ARNI-E CONTROLLER EURO | D65: 4e | E65: =_xlfn.XLOOKUP( B65, '[4]Pricelist Conference Audio EMEA'!$B:$B, '[4]Pricelist Conference Audio EMEA'!$G:$G, "Not found" ) -> 7570.2 | F65: S3 | G65: A | H65: 7326909890 | I65: CN | L65: 2 | M65: 3
A66: PRS-4OMI4 | B66: F.01U.396.294 | C66: OMNEO interfejs | D66: 4e | E66: =_xlfn.XLOOKUP( B66, '[4]Pricelist Conference Audio EMEA'!$B:$B, '[4]Pricelist Conference Audio EMEA'!$G:$G, "Not found" ) -> 4294.5 | F66: Y1 | G66: A | H66: 85177000 | I66: PT
A67: DCNM-SERVER4 | B67: Z.01X.002.789 | C67: Serwer systemu Dicentis | D67: 4e | E67: =_xlfn.XLOOKUP( B67, '[4]Pricelist Conference Audio EMEA'!$B:$B, '[4]Pricelist Conference Audio EMEA'!$G:$G, "Not found" ) -> 5290 | F67: S1 | O67: Następca DCNM-Server3. Wkrótce dostępny
A68: OMN-DANTEGTW | B68: F.01U.360.285 | C68: Dante gateway | D68: 4e | E68: =_xlfn.XLOOKUP( B68, '[4]Pricelist Conference Audio EMEA'!$B:$B, '[4]Pricelist Conference Audio EMEA'!$G:$G, "Not found" ) -> 3032.9 | F68: S3 | G68: A | H68: 85177000 | I68: CN | J68: 59 | L68: 2 | M68: 3
A69: DICENTIS Software 1
A70: DCNM-LDANTE | B70: F.01U.354.449 | C70: Licencja na 1 strumień Dante | D70: 4e | E70: =_xlfn.XLOOKUP( B70, '[4]Pricelist Conference Audio EMEA'!$B:$B, '[4]Pricelist Conference Audio EMEA'!$G:$G, "Not found" ) -> 54.8 | F70: S3 | G70: N.A. | H70: 4911990000 | I70: NL | L70: 0 | M70: limited
A71: DCNM-LPH10-P1Y | B71: F.01U.411.292 | C71: Hybrid add on for 10 part. prepaid | D71: 4e | E71: =_xlfn.XLOOKUP( B71, '[4]Pricelist Conference Audio EMEA'!$B:$B, '[4]Pricelist Conference Audio EMEA'!$G:$G, "Not found" ) -> 1170.7 | F71: S3 | H71: 49119900 | I71: DE
A72: DCNM-LPH10-S1Y | B72: F.01U.998.503 | C72: Hybrid add on for 10 part. subscr. | D72: 4e | E72: =_xlfn.XLOOKUP( B72, '[4]Pricelist Conference Audio EMEA'!$B:$B, '[4]Pricelist Conference Audio EMEA'!$G:$G, "Not found" ) -> 1064.3 | F72: S3
A73: DCNM-LPH-P1Y | B73: F.01U.411.291 | C73: Hybrid add on for 1 part. prepaid | D73: 4e | E73: =_xlfn.XLOOKUP( B73, '[4]Pricelist Conference Audio EMEA'!$B:$B, '[4]Pricelist Conference Audio EMEA'!$G:$G, "Not found" ) -> 224.7 | F73: S3 | H73: 49119900 | I73: DE
A74: DCNM-LPH-S1Y | B74: F.01U.998.502 | C74: Hybrid add on for 1 part. subscr. | D74: 4e | E74: =_xlfn.XLOOKUP( B74, '[4]Pricelist Conference Audio EMEA'!$B:$B, '[4]Pricelist Conference Audio EMEA'!$G:$G, "Not found" ) -> 204.3 | F74: S3
A75: DCNM-LPPP-P1Y | B75: F.01U.411.287 | C75: Participant premium pro prepaid | D75: 4e | E75: =_xlfn.XLOOKUP( B75, '[4]Pricelist Conference Audio EMEA'!$B:$B, '[4]Pricelist Conference Audio EMEA'!$G:$G, "Not found" ) -> 82.8 | F75: S3 | H75: 49119900 | I75: DE
A76: DCNM-LPPP-S1Y | B76: F.01U.998.500 | C76: Participant premium pro subscr. | D76: 4e | E76: =_xlfn.XLOOKUP( B76, '[4]Pricelist Conference Audio EMEA'!$B:$B, '[4]Pricelist Conference Audio EMEA'!$G:$G, "Not found" ) -> 75.3 | F76: S3
A77: DCNM-LPUP-P1Y | B77: F.01U.411.288 | C77: Participant ultimate pro prepaid | D77: 4e | E77: =_xlfn.XLOOKUP( B77, '[4]Pricelist Conference Audio EMEA'!$B:$B, '[4]Pricelist Conference Audio EMEA'!$G:$G, "Not found" ) -> 118.3 | F77: S3 | H77: 49119900 | I77: DE
A78: DCNM-LPUP-S1Y | B78: F.01U.998.501 | C78: Participant ultimate pro subscr. | D78: 4e | E78: =_xlfn.XLOOKUP( B78, '[4]Pricelist Conference Audio EMEA'!$B:$B, '[4]Pricelist Conference Audio EMEA'!$G:$G, "Not found" ) -> 107.5 | F78: S3
A79: DCNM-LPP-PE | B79: F.01U.411.285 | C79: Participant premium perpetual | D79: 4e | E79: =_xlfn.XLOOKUP( B79, '[4]Pricelist Conference Audio EMEA'!$B:$B, '[4]Pricelist Conference Audio EMEA'!$G:$G, "Not found" ) -> 215 | F79: S3
A80: DCNM-LPSMA-PE | B80: F.01U.415.155 | C80: Licencja SMA na 1 rok dla uczestnika DCNM-LPx-PE | D80: 4e | E80: =_xlfn.XLOOKUP( B80, '[4]Pricelist Conference Audio EMEA'!$B:$B, '[4]Pricelist Conference Audio EMEA'!$G:$G, "Not found" ) -> 64.5 | F80: S3 | H80: 49119900 | I80: DE
A81: DCNM-LPU-PE | B81: F.01U.411.286 | C81: Participant ultimate perpetual | D81: 4e | E81: =_xlfn.XLOOKUP( B81, '[4]Pricelist Conference Audio EMEA'!$B:$B, '[4]Pricelist Conference Audio EMEA'!$G:$G, "Not found" ) -> 322.5 | F81: S3 | H81: 49119900 | I81: DE
A82: DCNM-LPAPP-PE | B82: F.01U.428.415 | C82: Licencja prepetual dla aplikacja uczestnika | D82: 4e | E82: =_xlfn.XLOOKUP( B82, '[4]Pricelist Conference Audio EMEA'!$B:$B, '[4]Pricelist Conference Audio EMEA'!$G:$G, "Not found" ) -> 301 | F82: S3 | H82: 49119900 | I82: DE | O82: Licencja do nowej aplikacji uczestnika dla systemu Android
A83: DICENTIS Installation equipment 1
A84: DCNM-CB02 | B84: F.01U.416.429 | C84: Kabel systemowy 2m | D84: 4e | E84: =_xlfn.XLOOKUP( B84, '[4]Pricelist Conference Audio EMEA'!$B:$B, '[4]Pricelist Conference Audio EMEA'!$G:$G, "Not found" ) -> 52.1 | F84: S2 | G84: A | O84: Nowy przewód systemowy
A85: DCNM-CB05 | B85: F.01U.416.428 | C85: Kabel systemowy 5m | D85: 4e | E85: =_xlfn.XLOOKUP( B85, '[4]Pricelist Conference Audio EMEA'!$B:$B, '[4]Pricelist Conference Audio EMEA'!$G:$G, "Not found" ) -> 81.9 | F85: S2 | G85: A | O85: Nowy przewód systemowy
A86: DCNM-CB10 | B86: F.01U.416.427 | C86: Kabel systemowy 10m | D86: 4e | E86: =_xlfn.XLOOKUP( B86, '[4]Pricelist Conference Audio EMEA'!$B:$B, '[4]Pricelist Conference Audio EMEA'!$G:$G, "Not found" ) -> 131.6 | F86: S2 | G86: A | O86: Nowy przewód systemowy
A87: DCNM-CB25 | B87: F.01U.416.426 | C87: Kabel systemowy 25m | D87: 4e | E87: =_xlfn.XLOOKUP( B87, '[4]Pricelist Conference Audio EMEA'!$B:$B, '[4]Pricelist Conference Audio EMEA'!$G:$G, "Not found" ) -> 249.8 | F87: S2 | G87: A | O87: Nowy przewód systemowy
A88: DCNM-CB250 | B88: F.01U.416.425 | C88: Kabel systemowy 250m | D88: 4e | E88: =_xlfn.XLOOKUP( B88, '[4]Pricelist Conference Audio EMEA'!$B:$B, '[4]Pricelist Conference Audio EMEA'!$G:$G, "Not found" ) -> 2124.8 | F88: S2 | G88: A | O88: Nowy przewód systemowy
A89: DCNM-CBCON | B89: F.01U.300.133 | C89: Złącza kabla systemowego, do połączenia z DCNM-CB02/05/10/25 (50 sztuk) | D89: 4e | E89: =_xlfn.XLOOKUP( B89, '[4]Pricelist Conference Audio EMEA'!$B:$B, '[4]Pricelist Conference Audio EMEA'!$G:$G, "Not found" ) -> 520.1 | F89: S3 | G89: A | H89: 8536901000 | I89: CN | L89: 2 | M89: 3
A90: DCNM-CB250-CPR | B90: F.01U.393.903 | C90: Systemowy kabel 250m | D90: 4e | E90: =_xlfn.XLOOKUP( B90, '[4]Pricelist Conference Audio EMEA'!$B:$B, '[4]Pricelist Conference Audio EMEA'!$G:$G, "Not found" ) -> 2336.5 | G90: A
A91: DCNM-CBCPLR | B91: =[5]Pricelist_EMEA!$G$156 -> F.01U.335.531 | C91: Sprzęgacz kabli (6 sztuk) | D91: 4e | E91: =_xlfn.XLOOKUP( B91, '[4]Pricelist Conference Audio EMEA'!$B:$B, '[4]Pricelist Conference Audio EMEA'!$G:$G, "Not found" ) -> 216.4 | F91: S3 | G91: A | H91: 8544492000 | I91: PT | L91: 3 | M91: 3
A92: DCN-FCOUP | B92: F.01U.510.216 | C92: Flush coupling (opakowanie 50 sztuk) | D92: 4e | E92: =_xlfn.XLOOKUP( B92, '[4]Pricelist Conference Audio EMEA'!$B:$B, '[4]Pricelist Conference Audio EMEA'!$G:$G, "Not found" ) -> 108.6 | F92: S3 | G92: A | H92: 39269097 | I92: CN | J92: 109 | L92: 24 | M92: 3 | O92: Opakowanie 50 sztuk
A93: DCNM-CBTK | B93: F.01U.274.860 | C93: Kable systemowe - toolkit | D93: 4e | E93: =_xlfn.XLOOKUP( B93, '[4]Pricelist Conference Audio EMEA'!$B:$B, '[4]Pricelist Conference Audio EMEA'!$G:$G, "Not found" ) -> 4457.5 | F93: S3 | G93: A | H93: 8203200000 | I93: DE | L93: 3 | M93: 3
A94: DCNM-IDESKINT | B94: F.01U.357.936 | C94: On-air & teleph. DCNM-IDESK | D94: 4e | E94: =_xlfn.XLOOKUP( B94, '[4]Pricelist Conference Audio EMEA'!$B:$B, '[4]Pricelist Conference Audio EMEA'!$G:$G, "Not found" ) -> 346.6 | F94: S3 | G94: A | H94: 8536699099 | I94: PT | J94: 4 | L94: 3 | M94: 3
A95: ARNI Power cord - EU | B95: F.01U.316.527 | C95: ARNI Power cord - EU | D95: 4j | E95: =_xlfn.XLOOKUP( B95, '[4]Pricelist Conference Audio EMEA'!$B:$B, '[4]Pricelist Conference Audio EMEA'!$G:$G, "Not found" ) -> 21.5 | F95: S3 | G95: A | H95: 85444290 | I95: TW | M95: 3
A96: ARNI RM GEN-2 | B96: F.01U.311.606 | C96: ARNI Rack Mount Shelf Kit G2 | D96: 4j | E96: =_xlfn.XLOOKUP( B96, '[4]Pricelist Conference Audio EMEA'!$B:$B, '[4]Pricelist Conference Audio EMEA'!$G:$G, "Not found" ) -> 40.9 | F96: S3 | G96: A | H96: 73269098 | I96: CN | M96: 1
A97: DICENTIS Accessories 1
A98: CSP-D00104 | B98: F.01U.402.107 | C98: Nakładka z pismem Braille'a do DCNM-DVT | D98: 4e | E98: =_xlfn.XLOOKUP( B98, '[4]Pricelist Conference Audio EMEA'!$B:$B, '[4]Pricelist Conference Audio EMEA'!$G:$G, "Not found" ) -> 352.5 | F98: S3 | G98: A | H98: 85189000
A99: CSP-D00114 | B99: F.01U.409.005 | C99: Orientation sheet for DCNM-FVP (25 pieces) | D99: 4e | E99: =_xlfn.XLOOKUP( B99, '[4]Pricelist Conference Audio EMEA'!$B:$B, '[4]Pricelist Conference Audio EMEA'!$G:$G, "Not found" ) -> 423 | F99: S1 | G99: A | H99: 85189000 | I99: DE | J99: 28 | K99: 25 | M99: 1
A100: DCNM-DICH | B100: F.01U.396.439 | C100: ID card holder for DCNM-D | D100: 4e | E100: =_xlfn.XLOOKUP( B100, '[4]Pricelist Conference Audio EMEA'!$B:$B, '[4]Pricelist Conference Audio EMEA'!$G:$G, "Not found" ) -> 1076.7 | F100: S3 | G100: C | H100: 39269097 | I100: CN | J100: 49 | M100: 3
A101: DCNM-ENCD | B101: F.01U.385.664 | C101: Elektroniczny wyświetlacz nazwy uczestnika, dwustronny | D101: 4e | E101: =_xlfn.XLOOKUP( B101, '[4]Pricelist Conference Audio EMEA'!$B:$B, '[4]Pricelist Conference Audio EMEA'!$G:$G, "Not found" ) -> 1791 | F101: S2
A102: DCNM-ENCF | B102: F.01U.428.416 | C102: Podstawka wyświetlacza nazwy uczestnika | D102: 4e | E102: =_xlfn.XLOOKUP( B102, '[4]Pricelist Conference Audio EMEA'!$B:$B, '[4]Pricelist Conference Audio EMEA'!$G:$G, "Not found" ) -> 80.6 | F102: S2
A103: DCNM-ENCP | B103: F.01U.434.320 | C103: Electronic name card flush plate | D103: 4e | E103: =_xlfn.XLOOKUP( B103, '[4]Pricelist Conference Audio EMEA'!$B:$B, '[4]Pricelist Conference Audio EMEA'!$G:$G, "Not found" ) -> 53.8 | F103: S1 | G103: A | H103: 85439090 | I103: PT | J103: 84 | M103: 3
A104: DCNM-ENCS | B104: F.01U.385.665 | C104: Electronic name card single sided | D104: 4e | E104: =_xlfn.XLOOKUP( B104, '[4]Pricelist Conference Audio EMEA'!$B:$B, '[4]Pricelist Conference Audio EMEA'!$G:$G, "Not found" ) -> 1558.8 | F104: S1 | G104: A | H104: 85235200 | I104: PT | J104: 84 | M104: 3
A105: DCNM-ENCW | B105: F.01U.436.458 | C105: Electronic name card wall bracket | D105: 4e | E105: =_xlfn.XLOOKUP( B105, '[4]Pricelist Conference Audio EMEA'!$B:$B, '[4]Pricelist Conference Audio EMEA'!$G:$G, "Not found" ) -> 80.6 | F105: S1 | G105: A | H105: 85437090 | I105: PT | J105: 84 | M105: 3
A106: DCNM-IDCRD | B106: Z.01X.003.930 | C106: Card, MIFAREclassic, 1kB, 50pcs | D106: 4e | E106: =_xlfn.XLOOKUP( B106, '[4]Pricelist Conference Audio EMEA'!$B:$B, '[4]Pricelist Conference Audio EMEA'!$G:$G, "Not found" ) -> 145.4 | F106: S1 | G106: A | H106: 85235200 | I106: DE | J106: 14 | M106: 3
A107: DCNM-TCIDESK | B107: F.01U.328.089 | C107: Walizka na 2 pulpity DCNM-IDESK | D107: 4e | E107: =_xlfn.XLOOKUP( B107, '[4]Pricelist Conference Audio EMEA'!$B:$B, '[4]Pricelist Conference Audio EMEA'!$G:$G, "Not found" ) -> 908.4 | F107: S3 | G107: A+ | H107: 4202125000 | I107: US | L107: 3 | M107: n.a.
A108: System bezprzewodowy DICENTIS Wireless
A109: Pulpity uczestników
A110: DCNM-WD | B110: F.01U.298.719 | C110: Pulpit bezprzewodowy | D110: 4e | E110: =_xlfn.XLOOKUP( B110, '[4]Pricelist Conference Audio EMEA'!$B:$B, '[4]Pricelist Conference Audio EMEA'!$G:$G, "Not found" ) -> 984.8 | F110: S3 | G110: A+ | H110: 8517620000 | I110: PT | L110: 25 | M110: 3 | N110: EWE-DCNWD-IW
A111: DCNM-WDE | B111: F.01U.298.744 | C111: Pulpit bezprzewodowy z wyświetlaczem i czytnikiem NFC | D111: 4e | E111: =_xlfn.XLOOKUP( B111, '[4]Pricelist Conference Audio EMEA'!$B:$B, '[4]Pricelist Conference Audio EMEA'!$G:$G, "Not found" ) -> 1318 | F111: S3 | G111: A+ | H111: 8517620000 | I111: PT | L111: 60 | M111: 3 | N111: EWE-DCNWD-IW
A112: Jednostka centralna
A113: DCNM-WAP | B113: F.01U.299.021 | C113: Bezprzewodowy punkt dostępowy | D113: 4e | E113: =_xlfn.XLOOKUP( B113, '[4]Pricelist Conference Audio EMEA'!$B:$B, '[4]Pricelist Conference Audio EMEA'!$G:$G, "Not found" ) -> 3468.3 | F113: S3 | G113: A+ | H113: 8517620000 | I113: PT | L113: 4 | M113: 3 | N113: EWE-DCNWAP-IW
A114: urządzenia i pozostałe
A115: DCNM-WLIION | B115: F.01U.410.599 | C115: Bateria pulpitu bezprzewodowego | D115: 4e | E115: =_xlfn.XLOOKUP( B115, '[4]Pricelist Conference Audio EMEA'!$B:$B, '[4]Pricelist Conference Audio EMEA'!$G:$G, "Not found" ) -> 291.2 | F115: S3 | G115: A | H115: 85076000 | I115: CN | J115: 154
A116: DCNM-WLIION2 | B116: F.01U.426.849 | C116: Bateria pulpitu bezprzewodowego | D116: 4e | E116: =_xlfn.XLOOKUP( B116, '[4]Pricelist Conference Audio EMEA'!$B:$B, '[4]Pricelist Conference Audio EMEA'!$G:$G, "Not found" ) -> 291.2 | F116: S3 | G116: A | H116: 85076000 | I116: CN | J116: 154
A117: DCNM-WCH05 | B117: F.01U.298.809 | C117: Ładowarka 5 gniazd | D117: 4e | E117: =_xlfn.XLOOKUP( B117, '[4]Pricelist Conference Audio EMEA'!$B:$B, '[4]Pricelist Conference Audio EMEA'!$G:$G, "Not found" ) -> 1109.9 | F117: S3 | G117: A+ | H117: 8504409090 | I117: PT | L117: 10 | M117: 3 | N117: EWE-DCNCHR-IW
A118: DCNM-TCD | B118: F.01U.335.596 | C118: Walizka transportowa : 10 pulpitów przewodowych DICENTIS z mikrofonami | D118: 4e | E118: =_xlfn.XLOOKUP( B118, '[4]Pricelist Conference Audio EMEA'!$B:$B, '[4]Pricelist Conference Audio EMEA'!$G:$G, "Not found" ) -> 1474.5 | F118: S3 | G118: A+ | H118: 4202125000 | I118: US
A119: DCNM-WTCD | B119: F.01U.336.014 | C119: Walizka transportowa : 1xWAP oraz 10 pulpitów bezprzewodowych DICENTIS z mikrofonami | D119: 4e | E119: =_xlfn.XLOOKUP( B119, '[4]Pricelist Conference Audio EMEA'!$B:$B, '[4]Pricelist Conference Audio EMEA'!$G:$G, "Not found" ) -> 1485 | F119: S3 | G119: A+ | H119: 4202125000 | I119: US
A120: DCNM-HDMIC | B120: F.01U.269.132 | C120: Mikrofon kierunkowy | D120: 4e | E120: =_xlfn.XLOOKUP( B120, '[4]Pricelist Conference Audio EMEA'!$B:$B, '[4]Pricelist Conference Audio EMEA'!$G:$G, "Not found" ) -> 260.8 | F120: S3 | G120: A+ | H120: 8518109590 | I120: PT | L120: 50 | M120: 3 | N120: EWE-DCNMIC-IW
A121: DCNM-MICS | B121: F.01U.288.448 | C121: Mikrofon krótki | D121: 4e | E121: =_xlfn.XLOOKUP( B121, '[4]Pricelist Conference Audio EMEA'!$B:$B, '[4]Pricelist Conference Audio EMEA'!$G:$G, "Not found" ) -> 179.2 | F121: S3 | G121: A+ | H121: 8518109590 | I121: CN | L121: 80 | M121: 3 | N121: EWE-DCNMIC-IW
A122: DCNM-MICL | B122: F.01U.288.447 | C122: Mikrofon długi | D122: 4e | E122: =_xlfn.XLOOKUP( B122, '[4]Pricelist Conference Audio EMEA'!$B:$B, '[4]Pricelist Conference Audio EMEA'!$G:$G, "Not found" ) -> 193.8 | F122: S3 | G122: A+ | H122: 8518109590 | I122: CN | L122: 80 | M122: 3 | N122: EWE-DCNMIC-IW
A123: Licencje software-owe
A124: DCNM-LSDU | B124: F.01U.310.246 | C124: Podwójny pulpit delegata - Licencja na pulpit | D124: 4e | E124: =_xlfn.XLOOKUP( B124, '[4]Pricelist Conference Audio EMEA'!$B:$B, '[4]Pricelist Conference Audio EMEA'!$G:$G, "Not found" ) -> 114 | F124: S3 | G124: N.A. | H124: 4911990000 | I124: NL | L124: n.a. | M124: limited
A125: DCNM-LCC | B125: F.01U.287.755 | C125: Sterowanie kamerami - LICENCJA | D125: 4e | E125: =_xlfn.XLOOKUP( B125, '[4]Pricelist Conference Audio EMEA'!$B:$B, '[4]Pricelist Conference Audio EMEA'!$G:$G, "Not found" ) -> 1061.6 | F125: S3 | G125: N.A. | H125: 4911990000 | I125: NL | L125: n.a. | M125: limited
A126: DCNM-LSID | B126: F.01U.300.533 | C126: Identyfikacja - Licencja na pulpit* | D126: 4e | E126: =_xlfn.XLOOKUP( B126, '[4]Pricelist Conference Audio EMEA'!$B:$B, '[4]Pricelist Conference Audio EMEA'!$G:$G, "Not found" ) -> 114 | F126: S3 | G126: N.A. | H126: 4911990000 | I126: NL | L126: n.a. | M126: limited
A127: DCNM-LSVT | B127: F.01U.300.532 | C127: Głosowanie - Licencja na pulpit* | D127: 4e | E127: =_xlfn.XLOOKUP( B127, '[4]Pricelist Conference Audio EMEA'!$B:$B, '[4]Pricelist Conference Audio EMEA'!$G:$G, "Not found" ) -> 114 | F127: S3 | G127: N.A. | H127: 4911990000 | I127: NL | L127: n.a. | M127: limited
A128: ¹ Tylko dla DCNM-WDE
A129: CYFROWY SYSTEM DYSKUSYJNY CCS1000D
A130: Pulpity typu desktop
A131: CCSD-DS | B131: F.01U.299.030 | C131: Pulpit uczestnika/przewodniczącego z krótkim mikrofonem | D131: 4e | E131: =_xlfn.XLOOKUP( B131, '[4]Pricelist Conference Audio EMEA'!$B:$B, '[4]Pricelist Conference Audio EMEA'!$G:$G, "Not found" ) -> 464.8 | F131: S3 | G131: A+ | H131: 8518109590 | I131: CN | L131: 95 | M131: 3 | N131: EWE-CCS1DD-IW
A132: CCSD-DL | B132: F.01U.299.031 | C132: Pulpit uczestnika/przewodniczącego z długim mikrofonem | D132: 4e | E132: =_xlfn.XLOOKUP( B132, '[4]Pricelist Conference Audio EMEA'!$B:$B, '[4]Pricelist Conference Audio EMEA'!$G:$G, "Not found" ) -> 474.9 | F132: S3 | G132: A+ | H132: 8518109590 | I132: CN | L132: 210 | M132: 3 | N132: EWE-CCS1DD-IW
A133: CCSD-DS2 | B133: Z.01X.002.506 | C133: Discussion device with short microphone | D133: 4e | E133: =_xlfn.XLOOKUP( B133, '[4]Pricelist Conference Audio EMEA'!$B:$B, '[4]Pricelist Conference Audio EMEA'!$G:$G, "Not found" ) -> 489.1 | F133: S1
A134: CCSD-DL2 | B134: Z.01X.002.507 | C134: Discussion device with long microphone | D134: 4e | E134: =_xlfn.XLOOKUP( B134, '[4]Pricelist Conference Audio EMEA'!$B:$B, '[4]Pricelist Conference Audio EMEA'!$G:$G, "Not found" ) -> 499.9 | F134: S1
A135: CCSD-DCBCM | B135: F.01U.420.799 | C135: Chairperson buttons for CCSD-DCx/Dx2 | D135: 4e | E135: =_xlfn.XLOOKUP( B135, '[4]Pricelist Conference Audio EMEA'!$B:$B, '[4]Pricelist Conference Audio EMEA'!$G:$G, "Not found" ) -> 86 | F135: S3 | G135: A | H135: 85189000 | I135: CN | J135: 90
A136: Pulpity do zabudowy
A137: CCSD-FDS | B137: F.01U.401.013 | C137: Pulpit dyskusyjny uczestnika, któtki mikrofon | D137: 4e | E137: =_xlfn.XLOOKUP( B137, '[4]Pricelist Conference Audio EMEA'!$B:$B, '[4]Pricelist Conference Audio EMEA'!$G:$G, "Not found" ) -> 592.6 | F137: S3 | G137: A | H137: 85183000 | I137: CN | J137: 78 | M137: 3
A138: CCSD-FDL | B138: F.01U.401.014 | C138: Pulpit dyskusyjny uczestnika, długi mikrofon | D138: 4e | E138: =_xlfn.XLOOKUP( B138, '[4]Pricelist Conference Audio EMEA'!$B:$B, '[4]Pricelist Conference Audio EMEA'!$G:$G, "Not found" ) -> 609.5 | F138: S3 | G138: A | H138: 85183000 | I138: CN | J138: 78 | M138: 3
A139: CCSD-FCMS | B139: F.01U.401.015 | C139: Pulpit dyskusyjny przewodniczącego, krótki mikrofon | D139: 4e | E139: =_xlfn.XLOOKUP( B139, '[4]Pricelist Conference Audio EMEA'!$B:$B, '[4]Pricelist Conference Audio EMEA'!$G:$G, "Not found" ) -> 598.2 | F139: S3 | G139: A | H139: 85183000 | I139: CN | J139: 78 | M139: 3
A140: CCSD-FCML | B140: F.01U.401.016 | C140: Pulpit dyskusyjny przewodniczącego, długi mikrofon | D140: 4e | E140: =_xlfn.XLOOKUP( B140, '[4]Pricelist Conference Audio EMEA'!$B:$B, '[4]Pricelist Conference Audio EMEA'!$G:$G, "Not found" ) -> 615.2 | F140: S3 | G140: A | H140: 85183000 | I140: CN | J140: 78 | M140: 3
A141: Jednostki centralne
A142: CCSD-CU | B142: F.01U.298.806 | C142: Jednostka centralna CCS1000D | D142: 4e | E142: =_xlfn.XLOOKUP( B142, '[4]Pricelist Conference Audio EMEA'!$B:$B, '[4]Pricelist Conference Audio EMEA'!$G:$G, "Not found" ) -> 1436.1 | F142: S3 | G142: A+ | H142: 8543709099 | I142: PT | L142: 4 | M142: 3 | N142: EWE-CCS1DC-IW
A143: CCSD-CURD | B143: F.01U.298.789 | C143: Jednostka centralna CCS1000D z nagrywarką i eliminatorem sprzężeń | D143: 4e | E143: =_xlfn.XLOOKUP( B143, '[4]Pricelist Conference Audio EMEA'!$B:$B, '[4]Pricelist Conference Audio EMEA'!$G:$G, "Not found" ) -> 1876.4 | F143: S3 | G143: A+ | H143: 8517620000 | I143: PT | L143: 15 | M143: 3 | N143: EWE-CCS1DR-IW
A144: CCSD-EXU | B144: F.01U.307.207 | C144: Zasilacz dodatkowy CCS1000D | D144: 4e | E144: =_xlfn.XLOOKUP( B144, '[4]Pricelist Conference Audio EMEA'!$B:$B, '[4]Pricelist Conference Audio EMEA'!$G:$G, "Not found" ) -> 1082.6 | F144: S3 | G144: A+ | H144: 8543709099 | I144: CN | L144: 2 | M144: 3 | N144: EWE-CCS1DE-IW
A145: Walizki transportowe
A146: CCSD-TC2 | B146: F.01U.336.016 | C146: Walizka transportowa na jednostkę centralną i 6 pulpitów | D146: 4e | E146: =_xlfn.XLOOKUP( B146, '[4]Pricelist Conference Audio EMEA'!$B:$B, '[4]Pricelist Conference Audio EMEA'!$G:$G, "Not found" ) -> 495.9 | F146: S3 | G146: A | H146: 4060039001573 | I146: NL | L146: 0 | M146: 3 | O146: EOL wrzesień 2025
A147: CCSD-TCD | B147: F.01U.320.333 | C147: Walizka transportowa na 10 pulpitów | D147: 4e | E147: =_xlfn.XLOOKUP( B147, '[4]Pricelist Conference Audio EMEA'!$B:$B, '[4]Pricelist Conference Audio EMEA'!$G:$G, "Not found" ) -> 495.9 | F147: SB | G147: A | H147: 4202125000 | I147: NL | L147: 10 | M147: 3 | O147: Zmiana statusu. Wyporzedaż stanu magazynowego
A148: Osprzęt instalacyjny
A149: DCN-DISCLM | B149: F.01U.011.610 | C149: Zestaw 25 zacisków blokujących przewód dla pulpitów dyskusyjnych DCN i CCS900 | D149: 4e | E149: =_xlfn.XLOOKUP( B149, '[4]Pricelist Conference Audio EMEA'!$B:$B, '[4]Pricelist Conference Audio EMEA'!$G:$G, "Not found" ) -> 44.7 | F149: S3 | G149: A | H149: 3926909790 | I149: CN | L149: 25 | M149: 3
A150: LBB4116/00 | B150: F.01U.507.781 | C150: 100m kabla DCN | D150: 4e | E150: =_xlfn.XLOOKUP( B150, '[4]Pricelist Conference Audio EMEA'!$B:$B, '[4]Pricelist Conference Audio EMEA'!$G:$G, "Not found" ) -> 667.1 | F150: S3 | G150: A+ | H150: 8544200090 | I150: CN | L150: 60 | M150: 3
A151: LBB4116/02 | B151: F.01U.507.782 | C151: Kabel DCN 2m z wtykami | D151: 4e | E151: =_xlfn.XLOOKUP( B151, '[4]Pricelist Conference Audio EMEA'!$B:$B, '[4]Pricelist Conference Audio EMEA'!$G:$G, "Not found" ) -> 55.5 | F151: S3 | G151: A+ | H151: 8544200090 | I151: CN | L151: 150 | M151: 3
A152: LBB4116/05 | B152: F.01U.507.783 | C152: Kabel DCN 5m z wtykami | D152: 4e | E152: =_xlfn.XLOOKUP( B152, '[4]Pricelist Conference Audio EMEA'!$B:$B, '[4]Pricelist Conference Audio EMEA'!$G:$G, "Not found" ) -> 94.9 | F152: S3 | G152: A+ | H152: 8544200090 | I152: CN | L152: 70 | M152: 3
A153: LBB4116/10 | B153: F.01U.507.784 | C153: Kabel DCN 10m z wtykami | D153: 4e | E153: =_xlfn.XLOOKUP( B153, '[4]Pricelist Conference Audio EMEA'!$B:$B, '[4]Pricelist Conference Audio EMEA'!$G:$G, "Not found" ) -> 119 | F153: S3 | G153: A+ | H153: 8544200090 | I153: CN | L153: 45 | M153: 3
A154: LBB4116/15 | B154: F.01U.507.785 | C154: Kabel DCN 15m z wtykami | D154: 4e | E154: =_xlfn.XLOOKUP( B154, '[4]Pricelist Conference Audio EMEA'!$B:$B, '[4]Pricelist Conference Audio EMEA'!$G:$G, "Not found" ) -> 141.6 | F154: S3 | G154: A | H154: 8544200090 | I154: CN | L154: 20 | M154: 3
A155: LBB4116/20 | B155: F.01U.507.787 | C155: Kabel DCN 20m z wtykami | D155: 4e | E155: =_xlfn.XLOOKUP( B155, '[4]Pricelist Conference Audio EMEA'!$B:$B, '[4]Pricelist Conference Audio EMEA'!$G:$G, "Not found" ) -> 159.6 | F155: S3 | G155: A | H155: 8544200090 | I155: CN | L155: 30 | M155: 3
A156: LBB4116/25 | B156: F.01U.507.788 | C156: Kabel DCN 25m z wtykami | D156: 4e | E156: =_xlfn.XLOOKUP( B156, '[4]Pricelist Conference Audio EMEA'!$B:$B, '[4]Pricelist Conference Audio EMEA'!$G:$G, "Not found" ) -> 187.6 | F156: S3 | G156: A | H156: 8544200090 | I156: CN | L156: 25 | M156: 3
A157: LBB4117/00 | B157: F.01U.507.791 | C157: Zestaw 25 złącz łączących kable DCN | D157: 4e | E157: =_xlfn.XLOOKUP( B157, '[4]Pricelist Conference Audio EMEA'!$B:$B, '[4]Pricelist Conference Audio EMEA'!$G:$G, "Not found" ) -> 337.3 | F157: S3 | G157: A | H157: 3926909790 | I157: CN | L157: 10 | M157: 3
A158: LBB4119/00 | B158: F.01U.142.207 | C158: 25 par wtyków DCN | D158: 4e | E158: =_xlfn.XLOOKUP( B158, '[4]Pricelist Conference Audio EMEA'!$B:$B, '[4]Pricelist Conference Audio EMEA'!$G:$G, "Not found" ) -> 264.2 | F158: S3 | G158: A+ | H158: 85366990 | I158: CZ | L158: 25 | M158: 3
A159: BEZPRZEWODOWY SYSTEM DYSTRYBUCJI DZWIEKU INTEGRUS
A160: Jednostka centralna
A161: INT-TXO | B161: F.01U.351.763 | C161: Integrus OMNEO jednostka centralna | D161: 4e | E161: =_xlfn.XLOOKUP( B161, '[4]Pricelist Conference Audio EMEA'!$B:$B, '[4]Pricelist Conference Audio EMEA'!$G:$G, "Not found" ) -> 3901 | F161: S3 | G161: A | I161: PT | M161: 3 | N161: EWE-INTTXO-IW
A162: INT-L1AL | B162: F.01U.406.605 | C162: Licencja jednostki Integrus OMNEO na dodatkowy język | D162: 4e | E162: =_xlfn.XLOOKUP( B162, '[4]Pricelist Conference Audio EMEA'!$B:$B, '[4]Pricelist Conference Audio EMEA'!$G:$G, "Not found" ) -> 215 | F162: S3 | G162: - | I162: DE | M162: -
A163: Radiatory
A164: LBB3414/00 | B164: F.01U.508.301 | C164: Zestaw montażowy dla LBB 3411, 3412, 4511, 4512 | D164: 4e | E164: =_xlfn.XLOOKUP( B164, '[4]Pricelist Conference Audio EMEA'!$B:$B, '[4]Pricelist Conference Audio EMEA'!$G:$G, "Not found" ) -> 134.8 | F164: S3 | G164: A+ | H164: 7326909890 | I164: CN | L164: 35 | M164: 3
A165: LBB4511/00 | B165: F.01U.074.362 | C165: Promiennik Podczerwień Średniej Mocy | D165: 4e | E165: =_xlfn.XLOOKUP( B165, '[4]Pricelist Conference Audio EMEA'!$B:$B, '[4]Pricelist Conference Audio EMEA'!$G:$G, "Not found" ) -> 2801.9 | F165: S3 | G165: A+ | H165: 8517620000 | I165: PT | L165: 20 | M165: 3 | N165: EWE-INTRAD-IW
A166: LBB4512/00 | B166: F.01U.074.363 | C166: Promiennik Podczerwień Dużej Mocy | D166: 4e | E166: =_xlfn.XLOOKUP( B166, '[4]Pricelist Conference Audio EMEA'!$B:$B, '[4]Pricelist Conference Audio EMEA'!$G:$G, "Not found" ) -> 4217.7 | F166: S3 | G166: A+ | H166: 8517620000 | I166: PT | L166: 15 | M166: 3 | N166: EWE-INTRAD-IW
A167: INT-TCRAD | B167: F.01U.407.402 | C167: Transport case for LBB451x | D167: 4e | E167: =_xlfn.XLOOKUP( B167, '[4]Pricelist Conference Audio EMEA'!$B:$B, '[4]Pricelist Conference Audio EMEA'!$G:$G, "Not found" ) -> 1671.4 | F167: S3 | G167: A | H167: 42021291 | I167: US
A168: Odbiorniki i akcesoria
A169: LBB4540/04 | B169: F.01U.508.294 | C169: Odbiornik 4 kanałowy - Integrus | D169: 4e | E169: =_xlfn.XLOOKUP( B169, '[4]Pricelist Conference Audio EMEA'!$B:$B, '[4]Pricelist Conference Audio EMEA'!$G:$G, "Not found" ) -> 227.4 | F169: S3 | G169: A+ | H169: 8519890000 | I169: CN | L169: 600 | M169: 3 | N169: EWE-PKTRVR-IW
A170: LBB4540/08 | B170: 4.998.599.036 | C170: Odbiornik 8 kanałowy - Integrus | D170: 4e | E170: =_xlfn.XLOOKUP( B170, '[4]Pricelist Conference Audio EMEA'!$B:$B, '[4]Pricelist Conference Audio EMEA'!$G:$G, "Not found" ) -> 255.7 | F170: S3 | G170: A+ | H170: 8519890000 | I170: CN | L170: 350 | M170: 3 | N170: EWE-INTPRC-IW
A171: LBB4540/32 | B171: 4.998.599.037 | C171: Odbiornik 32 kanałowy - Integrus | D171: 4e | E171: =_xlfn.XLOOKUP( B171, '[4]Pricelist Conference Audio EMEA'!$B:$B, '[4]Pricelist Conference Audio EMEA'!$G:$G, "Not found" ) -> 297.9 | F171: S3 | G171: A+ | H171: 8519890000 | I171: CN | L171: 400 | M171: 3 | N171: EWE-INTPRC-IW
A172: LBB4550/10 | B172: F.01U.073.977 | C172: Zestaw Akumulatorów NiMH (10 zestawów akumulatorków) | D172: 4e | E172: =_xlfn.XLOOKUP( B172, '[4]Pricelist Conference Audio EMEA'!$B:$B, '[4]Pricelist Conference Audio EMEA'!$G:$G, "Not found" ) -> 224.4 | F172: S3 | G172: A+ | H172: 8507500090 | I172: CN | L172: 300 | M172: 1
A173: LBB4560/00 | B173: F.01U.415.619 | C173: Ładowarka walizkowa dla 56 odbiorników LBB4540 | D173: 4e | E173: =_xlfn.XLOOKUP( B173, '[4]Pricelist Conference Audio EMEA'!$B:$B, '[4]Pricelist Conference Audio EMEA'!$G:$G, "Not found" ) -> 2830.4 | F173: S3 | G173: A | H173: 85044083 | I173: PT | J173: 17 | O173: Nowy produkt. Następca produktu powyżej
A174: INT-TCRX | B174: F.01U.407.403 | C174: Transport case for 100 LBB4540 | D174: 4e | E174: =_xlfn.XLOOKUP( B174, '[4]Pricelist Conference Audio EMEA'!$B:$B, '[4]Pricelist Conference Audio EMEA'!$G:$G, "Not found" ) -> 1200.1 | F174: S3 | G174: A | H174: 42021291 | I174: US | O174: Nowy produkt. Następca FCRX
A175: LBB4560/50 | B175: F.01U.078.899 | C175: Ładowarka Ścienna dla 56 odbiorników | D175: 4e | E175: =_xlfn.XLOOKUP( B175, '[4]Pricelist Conference Audio EMEA'!$B:$B, '[4]Pricelist Conference Audio EMEA'!$G:$G, "Not found" ) -> 2880.1 | F175: S3 | G175: A | H175: 8504405590 | I175: PT | L175: 6 | M175: 3 | N175: EWE-INTCHAR-IW
A176: SŁUCHAWKI
A177: HDP-LW | B177: F.01U.410.116 | C177: Słuchawki lekkie. Zestaw 10 sztuk | D177: 4e | E177: =_xlfn.XLOOKUP( B177, '[4]Pricelist Conference Audio EMEA'!$B:$B, '[4]Pricelist Conference Audio EMEA'!$G:$G, "Not found" ) -> 186.3 | F177: S3 | G177: A | H177: 85183000 | I177: PH | K177: 10 | M177: 1 | O177: Cena za 10 sztuk
A178: HDP-LWEP | B178: F.01U.410.141 | C178: Zestaw 100 sztuk gąbek dla słuchawek HDP-LW | D178: 4e | E178: =_xlfn.XLOOKUP( B178, '[4]Pricelist Conference Audio EMEA'!$B:$B, '[4]Pricelist Conference Audio EMEA'!$G:$G, "Not found" ) -> 121.9 | F178: S1 | G178: A | H178: 85189000 | I178: PH | K178: 100 | M178: - | O178: Cena za 100 sztuk
A179: HDP-SE | B179: F.01U.401.124 | C179: Słuchawka na jedno ucho. Opakowanie zbiorcze na 10 sztuk (cena za 1 sztukę) | D179: 4e | E179: =_xlfn.XLOOKUP( B179, '[4]Pricelist Conference Audio EMEA'!$B:$B, '[4]Pricelist Conference Audio EMEA'!$G:$G, "Not found" ) -> 241.8 | F179: S3 | G179: A | H179: 85183000 | I179: PH | K179: 10 | M179: 1 | O179: Cena za 1 sztukę, ale opakowanie zbiorcze na 10 sztuk
A180: HDP-IHDP | B180: F.01U.376.896 | C180: Słuchawki tłumacza | D180: 4e | E180: =_xlfn.XLOOKUP( B180, '[4]Pricelist Conference Audio EMEA'!$B:$B, '[4]Pricelist Conference Audio EMEA'!$G:$G, "Not found" ) -> 159.7 | F180: S3 | G180: A | H180: 8518300090 | I180: PH | L180: 55 | M180: 1
A181: HDP-IHDPEP | B181: F.01U.376.901 | C181: Nakładka uszna dla HDP-IHDP/IHDS | D181: 4e | E181: =_xlfn.XLOOKUP( B181, '[4]Pricelist Conference Audio EMEA'!$B:$B, '[4]Pricelist Conference Audio EMEA'!$G:$G, "Not found" ) -> 191.4 | F181: S3 | G181: A | H181: 8518900000 | I181: PH | L181: 0 | M181: 0
A182: HDP-IHDS | B182: F.01U.376.902 | C182: Zestaw nagłowny tłumacza | D182: 4e | E182: =_xlfn.XLOOKUP( B182, '[4]Pricelist Conference Audio EMEA'!$B:$B, '[4]Pricelist Conference Audio EMEA'!$G:$G, "Not found" ) -> 365.9 | F182: S3 | G182: A | H182: 85183000 | I182: PH | M182: 1
A183: HDP-ILN | B183: F.01U.012.808 | C183: Pętla indukcyjna | D183: 4e | E183: =_xlfn.XLOOKUP( B183, '[4]Pricelist Conference Audio EMEA'!$B:$B, '[4]Pricelist Conference Audio EMEA'!$G:$G, "Not found" ) -> 98.9 | F183: S3 | G183: A | H183: 8518900099 | I183: CN | L183: 35 | M183: 1 | O183: EOL sierpień 2025
D184: * | F184: * | G184: * | H184: * | I184: * | J184: * | K184: * | L184: * | M184: *
A186: Legenda:
A187: kolor zielony - nowe produkty, zmiany
A188: kolor czerwony - wycofane z oferty (EOL)

Sheet AVONIC
A1: Cennik Systemów Kongresowych i Konferencyjnych REUP, ważny od 01.06.2026
A4: kod CTN | B4: Numer SAP | C4: Opis | D4: kategoria produktowa | E4: Cena REUP EUR netto | F4: Status dostępności | G4: kod ABC | H4: kod Commodity | I4: kraj pochodzenia | J4: Lead Time (days) | K4: opakowanie zbiorcze | L4: Spike order qty | M4: Gwarancja (lat) | N4: Przedłużenie gwarancji o 12 m-cy | O4: Uwagi
A5: AVONIC CAMERAS
A6: AV-CM32-IP-B | B6: Z.01X.005.101 | C6: PTZ camera 4K & Full HD 20x zoom bk | D6: 4v | E6: 999 | F6: S2 | G6: C | H6: 85258900 | I6: CN | J6: 14 | M6: 3
A7: AV-CM32-IP-W | B7: Z.01X.005.102 | C7: PTZ camera 4K & Full HD 20x zoom wh | D7: 4v | E7: 999 | F7: S2 | G7: C | H7: 85258900 | I7: CN | J7: 14 | M7: 3
A8: AV-CM82-IP-B | B8: Z.01X.005.103 | C8: PTZ camera 4K & Full HD 20x zoom black | D8: 4v | E8: 1799 | F8: S2 | G8: C | H8: 85258900 | I8: CN | J8: 14 | M8: 3
A9: AV-CM82-IP-W | B9: Z.01X.005.104 | C9: PTZ camera 4K & Full HD 20x zoom white | D9: 4v | E9: 1799 | F9: S2 | G9: C | H9: 85258900 | I9: CN | J9: 14 | M9: 3
A10: AV-CM83-IP-B | B10: Z.01X.005.105 | C10: PTZ camera 4K & Full HD 30x zoom black | D10: 4v | E10: 1699 | F10: S2 | G10: C | H10: 85258900 | I10: CN | J10: 14 | M10: 3
A11: AV-CM83-IP-W | B11: Z.01X.005.106 | C11: PTZ camera 4K & Full HD 30x zoom white | D11: 4v | E11: 1699 | F11: S2 | G11: C | H11: 85258900 | I11: CN | J11: 14 | M11: 3
A12: AV-MT200-B | B12: Z.01X.005.107 | C12: Wall mount for CM30, CM40, CM70 black | D12: 4v | E12: 109 | F12: S2 | G12: C | H12: 85299096 | I12: NL | J12: 14 | M12: 3
A13: AV-MT200-W | B13: Z.01X.005.108 | C13: Wall mount for CM30, CM40, CM70 white | D13: 4v | E13: 109 | F13: S2 | G13: C | H13: 85299096 | I13: NL | J13: 14 | M13: 3
A14: AV-MT220-B | B14: Z.01X.005.109 | C14: Double wall mount for CM30, CM70 black | D14: 4v | E14: 219 | F14: S2 | G14: C | H14: 85299096 | I14: NL | J14: 14 | M14: 3
A15: AV-MT220-W | B15: Z.01X.005.110 | C15: Double wall mount for CM30, CM70 white | D15: 4v | E15: 219 | F15: S2 | G15: C | H15: 85299096 | I15: NL | J15: 14 | M15: 3
A16: AV-MT250-B | B16: Z.01X.005.111 | C16: Ceiling mount for CM30, CM40, CM70 black | D16: 4v | E16: 179 | F16: S2 | G16: C | H16: 85299096 | I16: NL | J16: 14 | M16: 3
A17: AV-MT250-W | B17: Z.01X.005.112 | C17: Ceiling Mount for CM30, CM40, CM70 white | D17: 4v | E17: 179 | F17: S2 | G17: C | H17: 85299096 | I17: NL | J17: 14 | M17: 3
A18: AV-CM93-DAV-B | B18: Z.01X.005.113 | C18: 4K60 PTZ Dante AV-H camera 30x zoom bk | D18: 4v | E18: 2749 | F18: S2 | G18: C | H18: 85258900 | I18: CN | J18: 14 | M18: 3
A19: AV-CM93-DAV-W | B19: Z.01X.005.114 | C19: 4K60 PTZ Dante AV-H camera 30x zoom wh | D19: 4v | E19: 2749 | F19: S2 | G19: C | H19: 85258900 | I19: CN | J19: 14 | M19: 3
A20: AV-CM93-IP-B | B20: Z.01X.005.115 | C20: 4K60 PTZ camera 30x zoom black | D20: 4v | E20: 2499 | F20: S2 | G20: C | H20: 85258900 | I20: CN | J20: 14 | M20: 3
A21: AV-CM93-IP-W | B21: Z.01X.005.116 | C21: 4K60 PTZ camera 30x zoom white | D21: 4v | E21: 2499 | F21: S2 | G21: C | H21: 85258900 | I21: CN | J21: 14 | M21: 3
A22: AV-CM93-NDI-B | B22: Z.01X.005.117 | C22: 4K60 PTZ NDI camera 30x zoom black | D22: 4v | E22: 2749 | F22: S2 | G22: C | H22: 85258900 | I22: CN | J22: 14 | M22: 3
A23: AV-CM93-NDI-W | B23: Z.01X.005.118 | C23: 4K60 PTZ NDI camera 30x zoom white | D23: 4v | E23: 2749 | F23: S2 | G23: C | H23: 85258900 | I23: CN | J23: 14 | M23: 3
A24: AV-CM90-LENSCAP | B24: Z.01X.005.119 | C24: Lenscap for CM90 Series | D24: 4v | E24: 10 | F24: S2 | G24: C | H24: 90330090 | I24: NL | J24: 14 | M24: 3
A25: AV-MT300-B | B25: Z.01X.005.120 | C25: Wall and ceiling mount for CM93 black | D25: 4v | E25: 219 | F25: S2 | G25: C | H25: 85299096 | I25: NL | J25: 14 | M25: 3
A26: AV-MT300-W | B26: Z.01X.005.121 | C26: Wall and ceiling Mount for CM93 white | D26: 4v | E26: 219 | F26: S2 | G26: C | H26: 85299096 | I26: NL | J26: 14 | M26: 3
A27: AV-CON200-IP | B27: Z.01X.005.122 | C27: PTZ camera controller over IP | D27: 4v | E27: 799 | F27: S2 | G27: C | H27: 8543709099 | I27: CN | J27: 14 | M27: 3
A28: AV-CON400-IP | B28: Z.01X.005.123 | C28: PTZ camera controller over IP | D28: 4v | E28: 1999 | F28: S2 | G28: C | H28: 8543709099 | I28: CN | J28: 14 | M28: 3
A29: AV-CAP100 | B29: Z.01X.005.124 | C29: Capture device HDMI to USB3.0 | D29: 4v | E29: 199 | F29: S2 | G29: C | H29: 85176200 | I29: CN | J29: 14 | M29: 3
A30: AV-CD600 | B30: Z.01X.005.125 | C30: CamDirector® AI processing unit | D30: 4v | E30: 2299 | F30: S2 | G30: C | H30: 8471410000 | I30: TW | J30: 14 | M30: 3
A31: AV-UEX150 | B31: Z.01X.005.126 | C31: USB 2.0 extender over CAT6a | D31: 4v | E31: 154 | F31: S2 | G31: C | H31: 8543709099 | I31: CN | J31: 14 | M31: 3
A32: AV-CD3-VS | B32: Z.01X.007.311 | C32: CamDirector IP Video Switcher Software (for CD600) | D32: 4v | E32: 10 | F32: S2 | G32: C | H32: 49119900 | I32: NL | J32: 14 | M32: 0
A33: AV-CD3-VT-8 | B33: Z.01X.007.312 | C33: CamDirector Voice Tracker Software 1-8 s | D33: 4v | E33: 699 | F33: S2 | G33: C | H33: 49119900 | I33: NL | J33: 14 | M33: 0
A34: AV-CD3-VT-16 | B34: Z.01X.007.313 | C34: CamDirector Voice Tracker Software 1-16 | D34: 4v | E34: 1699 | F34: S2 | G34: C | H34: 49119900 | I34: NL | J34: 14 | M34: 0
A35: AV-CD3-VT-24 | B35: Z.01X.007.314 | C35: CamDirector Voice Tracker Software 1-24 | D35: 4v | E35: 2699 | F35: S2 | G35: C | H35: 49119900 | I35: NL | J35: 14 | M35: 0
A36: AV-CD3-VT-XX | B36: Z.01X.007.315 | C36: CamDirector Voice Tracker Software >24 s | D36: 4v | E36: 999999 | F36: S2 | G36: C | H36: 49119900 | I36: NL | J36: 14 | M36: 0 | O36: Price on request
A37: AV-LC90-1 | B37: Z.01X.007.316 | C37: Tracking License CM90-series | D37: 4v | E37: 299 | F37: S2 | G37: C | H37: 49119900 | I37: NL | J37: 14 | M37: 0
A39: Legenda:
A40: kolor zielony - nowe produkty, zmiany
A41: kolor czerwony - wycofane z oferty (EOL)

Sheet Opisy i wyjasnienia
A2: Wyjaśnienia dotyczące cenników. Opisane tematy:
A3: - Gwarancja
A4: - Status produktu
A6: Gwarancja
B7: Keenfinity udziela gwarancji na Produkty Bosch: urządzenia nagłośnieniowe i kongresowe – 3 lata.
C8: Gwarancja nie obejmuje usterek spowodowanych brakiem prawidłowej konserwacji, lub eksploatacją niezgodną z instrukcjami, wyładowaniami atmosferycznymi oraz uszkodzeń spowodowanych pracą urządzeń w niewłaściwych warunkach otoczenia.
C9: Gwarancja nie obejmuje uszkodzeń spowodowanych przez użytkownika, wynikających z niewłaściwego użytkowania urządzenia.
C10: Gwarancja OGRANICZONA dotyczy oprogramowania i oznacza, że w przypadku niedziałania od początku (Dead On Arrival, DOA) nowe oprogramowanie i/lub wsparcie jest wymieniane bezpłatnie. We wszystkich innych przypadkach (np. uszkodzenie płyty CD) gwarancja nie obowiązuje
A14: Status produktu
B16: Wszystkie produkty posiadają status zależny od fazy cyklu życiowego produktu. Wyróżniamy 5 różnych stadiów:
B18: S0/S1 = Initial (początkowe): produkt jest opracowywany, zamówienia nie mogą być wprowadzane
B19: S2= New (nowość): produkt jest opracowywany, można wprowadzać zamówienia do systemu, ale dostawy nie są jeszcze realizowane.
B20: S3= Current (aktualne). Zakończono opracowanie produktu, można go zamawiać i dostarczać.
B21: S9= EOL Announced: Produkt jest ogłoszony jako END OF LIFE. Zamówienia mogą być dalej rezerwowane i dostarczane (produkcja/dostawa jest ciągle możliwa)
B22: SB= Sales Only (tylko sprzedaż): produkt jest wycofany, ale pozostało trochę egzemplarzy w magazynie. Można wprowadzać zamówienia.
B23: S5/SA= Historic (historyczne): produkt jest wycofany i nie ma go w magazynach. Nie można wprowadzać zamówień do systemu.
B24: Y1= Zablokowana dostawa, najprawdopodobniej dlatego, że produkt zastępuje inny produkt wycifany z produkcji, który jeszcze jest w magazynie
A26: Klasyfikacja A-B-C
B28: Wprowadzenie
B29: Wszystkie elementy są kategoryzowane do klasy A, B lub C. Produkty A i B są z zasady w magazynie, produkty C
B30: produkowane na zamówienie i dlatego potrzebują nieco czasu. Zamówienia należy składać z klasyfikacją ABC.
B31: Klasyfikacja ta (z czasami oczekiwania) zostanie opublikowana w cenniku. W ten sposób klasyfikacja będzie
B32: znana w całym łańcuchu dostaw (od fabryki po klienta). Ostateczna odpowiedzialność za klasyfikację ABC
B33: spoczywa na menedżerze wspomagania sprzedaży (Sales Support Manager).
B35: Definicja
B36: Poziom usług (RLIP=Requested Line Item Performance) na klase ABC i kryteria klasyfikacji produktu jako
B37: A, B lub C są następujące:
C39: Klasa | D39: Poiom usług | F39: Kryteria | H39: Przykłady
C40: A | D40: · Element magazynowy | F40: · Produkt o wysokim i stosunkowo stabilnym popycie | H40: Easyline
D41: · 95% dostępnych z magazynu, w innych przypadkach należy poczekać | F41: · Produkty sprzedawane głównie przez hurtownie | H41: Głośniki
F42: · Produkty, które ‘dopełniają’ pakiet (np. łączniki) | H42: Kamery, kamery Autodome
C43: B | D43: · Element magazynowy | F43: · Produkty o rozsądnej, ale wysoce nieprzewidywalnej strukturze popytu. | H43: Praesideo, Large allegiant
D44: · 90% dostępnych z magazynu, w innych przypadkach należy poczekać | F44: · Produkty sprzedawane przez kanał VAR | H44: Osprzęt
C45: C | D45: Element produkowany na zamówienie | F45: · Produkty o niskiej i nieprzewidywalnej strukturze popytu | H45: Głośniki o wysokiej mocy, pagery
D46: · Okres oczekiwania jest określony w cenniku | F46: · Produkty dostosowane do klienta | H46: Egzotyczne opcje
B48: Uwaga:
B49: Okres oczekiwania dla produktów klasy C wyrażony jest w tygodniach. Okres oczekiwania jest zazwyczaj wyrażony w dniach kalendarzowych, ale
B50: liczba ta jest zaokrągalana w górę (1-7 dni = 1 tydzień, 8 – 14 dni = 2 tygonie itp.). Produkty o okresie oczekiwania dłuższym niż
B51: 4 tygodnie są oznaczone jako ‘na żądanie’ w kolumnie ‘Uwagi”.
B53: Publikacja
B54: Klasyfikację ABC opublikowano w cenniku.

Sheet Wprowadzone Zmiany
A1: Systemy konferencyjne
A2: Wersja | B2: Zmiany
A5: 2026-06-01 | B5: Zmiany od 01.06.2026
B6: For order placement, please use DCNM-WLIION (F.01U.410.599) – Battery pack for DCNM-WD. The DCNM-WLIION2 (F.01U.426.849) – Battery pack for DCNM-WD will become available once the remaining stock of DCNM-WLIION (F.01U.410.599) is depleted.
B8: Price change per June 1, 2026:
B9: Conference Audio: 2% overall
B10: New Multimedia devices: 7.5%
B12: Conference Video (Avonic): no changes
B23: NPI
B24: CCSD-DL2; Z.01X.002.507; Discussion device with long microphone
B25: CCSD-DS2; Z.01X.002.506; Discussion device with short microphone
B26: CCSD-DCBCM; F.01U.420.799; Chairperson buttons for CCSD-DCx/Dx2
B29: EOL
B30: CSP-D00067; F.01U.380.045; DCNM-MIC WITH 320 mm STEM
B31: CSP-D00068; F.01U.380.046; DCNM-MIC WITH 340 mm STEM
B32: CSP-D00069; F.01U.380.047; DCNM-MIC WITH 360 mm STEM
B33: CSP-D00070; F.01U.380.048; DCNM-MIC WITH 380 mm STEM
B34: CSP-D00072; F.01U.380.050; DCNM-MIC WITH 420 mm STEM
B35: CSP-D00073; F.01U.380.051; DCNM-MIC WITH 440 mm STEM
B36: CSP-D00074; F.01U.380.052; DCNM-MIC WITH 460 mm STEM
B37: CSP-D00105; F.01U.393.344; MICROPHONE SCREW LOCK 320mm
B38: CSP-D00106; F.01U.393.345; MICROPHONE SCREW LOCK 340mm
B39: CSP-D00107; F.01U.393.346; MICROPHONE SCREW LOCK 360mm
B40: CSP-D00108; F.01U.393.347; MICROPHONE SCREW LOCK 380mm
B41: CSP-D00110; F.01U.393.349; MICROPHONE SCREW LOCK 420mm
B42: CSP-D00111; F.01U.393.350; MICROPHONE SCREW LOCK 440mm
B43: CSP-D00112; F.01U.393.351; MICROPHONE SCREW LOCK 460mm
B44: CSP-D00388; F.01U.412.151; Mic screw lock short stem ( silver)
B45: CSP-D00389; F.01U.412.152; Mic screw lock long stem (silver)
A46: 2026-04-01 | B46: Zmiany od 01.04.2026
